[Event "*** Titled Tuesday Blitz"]
[Site "Chess.com"]
[Date "2018.10.02"]
[Round "10"]
[White "Anton_Demchenko"]
[Black "dretch"]
[Result "0-1"]
[WhiteElo "2821"]
[BlackElo "2794"]
[TimeControl "180+2"]
[EndTime "15:14:16 PDT"]
[Termination "dretch won by checkmate"]

1. d4 {[%clk 0:03:01.9]} 1... d5 {[%clk 0:02:58.6]} 2. Bf4 {[%clk 0:03:02.9]}
2... c5 {[%clk 0:02:58.6]} 3. e3 {[%clk 0:03:04.1]} 3... Nc6 {[%clk 0:02:57.8]}
4. Nf3 {[%clk 0:03:03.6]} 4... Nf6 {[%clk 0:02:56.8]} 5. Nbd2 {[%clk 0:03:04.1]}
5... Qb6 {[%clk 0:02:47.7]} 6. dxc5 {[%clk 0:03:04.9]} 6... Qxc5 {[%clk
0:02:48.3]} 7. a3 {[%clk 0:03:03.9]} 7... Bg4 {[%clk 0:02:44.6]} 8. Be2 {[%clk
0:02:58.9]} 8... e6 {[%clk 0:02:44.1]} 9. O-O {[%clk 0:02:55.5]} 9... Be7 {[%clk
0:02:31.9]} 10. c4 {[%clk 0:02:30.6]} 10... Qb6 {[%clk 0:02:14.5]} 11. b4 {[%clk
0:02:30.6]} 11... O-O {[%clk 0:02:13.4]} 12. c5 {[%clk 0:02:22.8]} 12... Qd8
{[%clk 0:02:13.8]} 13. Rc1 {[%clk 0:02:24]} 13... Nh5 {[%clk 0:02:06.9]} 14. Bg3
{[%clk 0:02:09]} 14... Nxg3 {[%clk 0:02:05.6]} 15. hxg3 {[%clk 0:02:10.9]} 15...
Bf6 {[%clk 0:01:58.3]} 16. Qb3 {[%clk 0:02:11.7]} 16... Rc8 {[%clk 0:01:53.2]}
17. Rfd1 {[%clk 0:02:08.4]} 17... h5 {[%clk 0:01:50.8]} 18. Ne4 {[%clk
0:02:02.1]} 18... dxe4 {[%clk 0:01:43.8]} 19. Rxd8 {[%clk 0:01:57.7]} 19...
Rfxd8 {[%clk 0:01:45.7]} 20. b5 {[%clk 0:01:51.4]} 20... Na5 {[%clk 0:01:14]}
21. Qb4 {[%clk 0:01:49.7]} 21... b6 {[%clk 0:01:15.4]} 22. Qxe4 {[%clk
0:01:42.5]} 22... Nb3 {[%clk 0:01:08.6]} 23. Rd1 {[%clk 0:01:42]} 23... Nxc5
{[%clk 0:00:58.2]} 24. Rxd8+ {[%clk 0:01:41.4]} 24... Rxd8 {[%clk 0:00:57.4]}
25. Qc4 {[%clk 0:01:40.8]} 25... g6 {[%clk 0:00:49.6]} 26. a4 {[%clk 0:01:31.2]}
26... e5 {[%clk 0:00:46.3]} 27. Qa2 {[%clk 0:01:26.9]} 27... e4 {[%clk
0:00:29.8]} 28. Nh4 {[%clk 0:01:00.7]} 28... Be6 {[%clk 0:00:26.2]} 29. Bc4
{[%clk 0:00:58.1]} 29... Rd1+ {[%clk 0:00:25.5]} 30. Kh2 {[%clk 0:00:58.8]}
30... Ra1 {[%clk 0:00:23.2]} 31. Qc2 {[%clk 0:00:50.1]} 31... g5 {[%clk
0:00:13.3]} 32. Bxe6 {[%clk 0:00:30.2]} 32... fxe6 {[%clk 0:00:15.2]} 33. Qe2
{[%clk 0:00:26.3]} 33... gxh4 {[%clk 0:00:12.4]} 34. Qxh5 {[%clk 0:00:27.5]}
34... hxg3+ {[%clk 0:00:12.1]} 35. Kxg3 {[%clk 0:00:28.9]} 35... Kg7 {[%clk
0:00:11.1]} 36. Qg4+ {[%clk 0:00:28.6]} 36... Kf7 {[%clk 0:00:12.1]} 37. Qh5+
{[%clk 0:00:29.9]} 37... Ke7 {[%clk 0:00:12.8]} 38. Qh7+ {[%clk 0:00:28.8]}
38... Kd6 {[%clk 0:00:13.2]} 39. Qxa7 {[%clk 0:00:30.1]} 39... Be5+ {[%clk
0:00:13.4]} 40. Kg4 {[%clk 0:00:31.2]} 40... Nd7 {[%clk 0:00:14.5]} 41. Qa8
{[%clk 0:00:26.6]} 41... Ke7 {[%clk 0:00:14]} 42. g3 {[%clk 0:00:20.7]} 42...
Ra2 {[%clk 0:00:11]} 43. f4 {[%clk 0:00:15]} 43... exf3 {[%clk 0:00:11.2]} 44.
Kxf3 {[%clk 0:00:16.4]} 44... Ra3 {[%clk 0:00:12.3]} 45. Kf2 {[%clk 0:00:13.5]}
45... Bd6 {[%clk 0:00:12.1]} 46. g4 {[%clk 0:00:12.7]} 46... Bc5 {[%clk
0:00:13]} 47. Ke2 {[%clk 0:00:11.3]} 47... Ne5 {[%clk 0:00:06.8]} 48. g5 {[%clk
0:00:10]} 48... Ra2+ {[%clk 0:00:07.5]} 49. Kd1 {[%clk 0:00:10.4]} 49... Bxe3
{[%clk 0:00:06.3]} 50. Qb7+ {[%clk 0:00:09.4]} 50... Kd6 {[%clk 0:00:07.6]} 51.
Qb8+ {[%clk 0:00:06.3]} 51... Kd5 {[%clk 0:00:08.8]} 52. g6 {[%clk 0:00:06.7]}
52... Rd2+ {[%clk 0:00:08]} 53. Kc1 {[%clk 0:00:06.9]} 53... Nd3+ {[%clk
0:00:09]} 54. Kb1 {[%clk 0:00:08.5]} 54... Rb2+ {[%clk 0:00:10.1]} 55. Ka1
{[%clk 0:00:10]} 55... Bd4 {[%clk 0:00:11.3]} 56. g7 {[%clk 0:00:06.7]} 56...
Rxb5+ {[%clk 0:00:08.1]} 57. Ka2 {[%clk 0:00:07.9]} 57... Nc1+ {[%clk
0:00:09.2]} 58. Ka3 {[%clk 0:00:08.4]} 58... Bb2# {[%clk 0:00:10.4]} 0-1

[Event "*** Titled Tuesday Blitz"]
[Site "Chess.com"]
[Date "2018.10.02"]
[Round "10"]
[White "Buffy7"]
[Black "Kouzari"]
[Result "1-0"]
[WhiteElo "2653"]
[BlackElo "2490"]
[TimeControl "180+2"]
[EndTime "15:14:27 PDT"]
[Termination "Buffy7 won on time"]

1. e4 {[%clk 0:03:01.9]} 1... e6 {[%clk 0:03:01.1]} 2. d4 {[%clk 0:03:02.9]}
2... d5 {[%clk 0:03:02.6]} 3. Nc3 {[%clk 0:03:04.6]} 3... Bb4 {[%clk 0:03:03.5]}
4. e5 {[%clk 0:03:04.8]} 4... c5 {[%clk 0:03:03.3]} 5. a3 {[%clk 0:03:06.4]}
5... Bxc3+ {[%clk 0:03:04.5]} 6. bxc3 {[%clk 0:03:08.3]} 6... Qa5 {[%clk
0:03:05.7]} 7. Bd2 {[%clk 0:03:07.5]} 7... Qa4 {[%clk 0:03:06.5]} 8. Qg4 {[%clk
0:03:09]} 8... Kf8 {[%clk 0:03:05]} 9. Qd1 {[%clk 0:03:08.3]} 9... b6 {[%clk
0:03:00.6]} 10. Nf3 {[%clk 0:03:03.4]} 10... Ba6 {[%clk 0:02:59.2]} 11. c4
{[%clk 0:02:52.5]} 11... Bxc4 {[%clk 0:02:58.5]} 12. dxc5 {[%clk 0:02:41.2]}
12... Bxf1 {[%clk 0:02:47.3]} 13. Rxf1 {[%clk 0:02:43.1]} 13... bxc5 {[%clk
0:02:47.8]} 14. Rb1 {[%clk 0:02:44]} 14... Nc6 {[%clk 0:02:41.8]} 15. Rb7 {[%clk
0:02:41.6]} 15... h6 {[%clk 0:02:13.7]} 16. Qb1 {[%clk 0:02:40.3]} 16... Nge7
{[%clk 0:02:07.6]} 17. Qb5 {[%clk 0:02:40.3]} 17... Qxc2 {[%clk 0:01:49.4]} 18.
Ke2 {[%clk 0:02:34.5]} 18... Qe4+ {[%clk 0:01:28]} 19. Kd1 {[%clk 0:02:35.3]}
19... Kg8 {[%clk 0:01:09.1]} 20. Re1 {[%clk 0:02:11.5]} 20... Qg4 {[%clk
0:00:54.7]} 21. Qxc5 {[%clk 0:02:12.2]} 21... Qxg2 {[%clk 0:00:54.1]} 22. Ke2
{[%clk 0:02:13.6]} 22... Qg4 {[%clk 0:00:32.3]} 23. Rxe7 {[%clk 0:02:14.1]}
23... Nxe7 {[%clk 0:00:32]} 24. Qxe7 {[%clk 0:02:16]} 24... Qe4+ {[%clk
0:00:33.2]} 25. Be3 {[%clk 0:02:17.4]} 25... Rb8 {[%clk 0:00:29.4]} 26. Nd2
{[%clk 0:02:07.7]} 26... Qg6 {[%clk 0:00:25.3]} 27. f3 {[%clk 0:01:57.1]} 27...
Kh7 {[%clk 0:00:26.1]} 28. Rg1 {[%clk 0:01:56.9]} 28... Qf5 {[%clk 0:00:27.2]}
29. Qxa7 {[%clk 0:01:54.5]} 29... Rb2 {[%clk 0:00:25.3]} 30. Qd4 {[%clk
0:01:51.5]} 30... Rhb8 {[%clk 0:00:25.4]} 31. Rg4 {[%clk 0:01:45.3]} 31... Ra2
{[%clk 0:00:25.1]} 32. Rf4 {[%clk 0:01:46.3]} 32... Qg6 {[%clk 0:00:25.7]} 33.
Rg4 {[%clk 0:01:47.5]} 33... Qf5 {[%clk 0:00:24.6]} 34. Rf4 {[%clk 0:01:48.9]}
34... Qh5 {[%clk 0:00:25]} 35. Rh4 {[%clk 0:01:50.1]} 35... Qg6 {[%clk 0:00:25]}
36. Rg4 {[%clk 0:01:50.8]} 36... Qc2 {[%clk 0:00:25.2]} 37. a4 {[%clk
0:01:47.3]} 37... Rbb2 {[%clk 0:00:19.3]} 38. Qd3+ {[%clk 0:01:45.1]} 38...
Qxd3+ {[%clk 0:00:19]} 39. Kxd3 {[%clk 0:01:47]} 39... Ra3+ {[%clk 0:00:16.4]}
40. Ke2 {[%clk 0:01:47.6]} 40... Rba2 {[%clk 0:00:17.6]} 41. Rb4 {[%clk
0:01:43.7]} 41... Rxa4 {[%clk 0:00:18.4]} 42. Rb8 {[%clk 0:01:45.2]} 42... Kg6
{[%clk 0:00:19.2]} 43. Rg8 {[%clk 0:01:44.5]} 43... d4 {[%clk 0:00:15.2]} 44.
Bf2 {[%clk 0:01:35.3]} 44... R2a3 {[%clk 0:00:11]} 45. h4 {[%clk 0:01:29.3]}
45... Ra2 {[%clk 0:00:10.9]} 46. h5+ {[%clk 0:01:28]} 46... Kh7 {[%clk
0:00:11.3]} 47. Rf8 {[%clk 0:01:28.2]} 47... R4a3 {[%clk 0:00:05]} 48. Bxd4
{[%clk 0:01:26.7]} 48... Ra4 {[%clk 0:00:04.5]} 49. Bf2 {[%clk 0:01:23.6]} 49...
Ra5 {[%clk 0:00:04.3]} 50. f4 {[%clk 0:01:17.5]} 50... Rd5 {[%clk 0:00:05.2]}
51. Be3 {[%clk 0:01:18.2]} 51... Ra3 {[%clk 0:00:06.5]} 52. Rxf7 {[%clk
0:01:16.8]} 52... Rdd3 {[%clk 0:00:08.4]} 53. Bf2 {[%clk 0:01:18]} 53... Rh3
{[%clk 0:00:09.2]} 54. Re7 {[%clk 0:01:16]} 54... Ra6 {[%clk 0:00:09.5]} 55. Rd7
{[%clk 0:01:16.1]} 55... Rxh5 {[%clk 0:00:10.3]} 56. Ne4 {[%clk 0:01:06.7]}
56... Rf5 {[%clk 0:00:11]} 57. Kf3 {[%clk 0:01:05.1]} 57... Kg6 {[%clk
0:00:10.6]} 58. Nd6 {[%clk 0:01:01.5]} 58... Rf8 {[%clk 0:00:07.8]} 59. Re7
{[%clk 0:01:02.4]} 59... Kh5 {[%clk 0:00:07.8]} 60. Rxg7 {[%clk 0:01:02.6]}
60... Ra3+ {[%clk 0:00:05.4]} 61. Be3 {[%clk 0:01:03.6]} 61... Rb8 {[%clk
0:00:02.7]} 62. f5 {[%clk 0:00:54.9]} 62... Rbb3 {[%clk 0:00:03.2]} 63. Nc4
{[%clk 0:00:54.4]} 63... Ra4 {[%clk 0:00:03.9]} 64. Nd2 {[%clk 0:00:54.2]} 64...
Rba3 {[%clk 0:00:02.3]} 65. Rg6 {[%clk 0:00:48.5]} 1-0

[Event "*** Titled Tuesday Blitz"]
[Site "Chess.com"]
[Date "2018.10.02"]
[Round "10"]
[White "TrimitziosP7"]
[Black "Alopekos"]
[Result "0-1"]
[WhiteElo "2569"]
[BlackElo "2463"]
[TimeControl "180+2"]
[EndTime "15:14:27 PDT"]
[Termination "Alopekos won by resignation"]

1. d4 {[%clk 0:03:01.9]} 1... Nf6 {[%clk 0:03:00.3]} 2. Nc3 {[%clk 0:03:03.2]}
2... d5 {[%clk 0:03:00.8]} 3. Bf4 {[%clk 0:03:04.2]} 3... c5 {[%clk 0:02:57.9]}
4. e3 {[%clk 0:03:01.4]} 4... a6 {[%clk 0:02:54.4]} 5. Nf3 {[%clk 0:03:01.2]}
5... Nc6 {[%clk 0:02:54.1]} 6. Be2 {[%clk 0:03:01]} 6... Bf5 {[%clk 0:02:51.1]}
7. O-O {[%clk 0:03:02.1]} 7... e6 {[%clk 0:02:52.2]} 8. Ne5 {[%clk 0:03:02.9]}
8... Nxe5 {[%clk 0:02:48.1]} 9. Bxe5 {[%clk 0:03:04.8]} 9... Bd6 {[%clk
0:02:47.2]} 10. f4 {[%clk 0:03:05.5]} 10... Bxe5 {[%clk 0:02:42.5]} 11. dxe5
{[%clk 0:03:07.4]} 11... Ne4 {[%clk 0:02:42.5]} 12. Nxe4 {[%clk 0:03:07.3]}
12... Bxe4 {[%clk 0:02:44.4]} 13. Bd3 {[%clk 0:03:08.8]} 13... Bxd3 {[%clk
0:02:35.9]} 14. cxd3 {[%clk 0:03:10.7]} 14... O-O {[%clk 0:02:30.6]} 15. b3
{[%clk 0:03:09.7]} 15... b5 {[%clk 0:02:19.3]} 16. Rc1 {[%clk 0:03:09.8]} 16...
Qb6 {[%clk 0:02:19]} 17. Qe2 {[%clk 0:03:11.3]} 17... a5 {[%clk 0:02:18.1]} 18.
g4 {[%clk 0:03:05.2]} 18... Rfe8 {[%clk 0:01:47.3]} 19. e4 {[%clk 0:03:04.9]}
19... c4+ {[%clk 0:01:40.6]} 20. Kg2 {[%clk 0:03:05.6]} 20... cxd3 {[%clk
0:01:29.5]} 21. Qxd3 {[%clk 0:03:07.5]} 21... dxe4 {[%clk 0:01:30.7]} 22. Qxe4
{[%clk 0:03:07.7]} 22... a4 {[%clk 0:01:22.1]} 23. b4 {[%clk 0:03:08.2]} 23...
Rad8 {[%clk 0:01:18]} 24. Rc5 {[%clk 0:03:05.1]} 24... Rd2+ {[%clk 0:01:15.9]}
25. Rf2 {[%clk 0:02:59.2]} 25... Red8 {[%clk 0:01:17.1]} 26. Qe3 {[%clk
0:02:50.3]} 26... Qb7+ {[%clk 0:01:09.8]} 27. Qf3 {[%clk 0:02:50.7]} 27... Rxf2+
{[%clk 0:00:48.5]} 28. Kxf2 {[%clk 0:02:52.6]} 28... Rd2+ {[%clk 0:00:49.7]} 29.
Kg3 {[%clk 0:02:53.8]} 29... Qxf3+ {[%clk 0:00:51.2]} 30. Kxf3 {[%clk
0:02:55.7]} 30... h5 {[%clk 0:00:52.8]} 31. h3 {[%clk 0:02:54.6]} 31... Rxa2
{[%clk 0:00:43.7]} 32. Rxb5 {[%clk 0:02:53.5]} 32... Rb2 {[%clk 0:00:31.3]} 33.
f5 {[%clk 0:02:50.7]} 33... a3 {[%clk 0:00:23.5]} 34. Kg3 {[%clk 0:02:39.2]}
34... a2 {[%clk 0:00:14.3]} 35. Ra5 {[%clk 0:02:40.1]} 35... hxg4 {[%clk
0:00:11.5]} 36. hxg4 {[%clk 0:02:40]} 36... Rb3+ {[%clk 0:00:12.7]} 37. Kf2
{[%clk 0:02:28.3]} 37... Rxb4 {[%clk 0:00:11.5]} 38. Rxa2 {[%clk 0:02:29.3]}
38... Rxg4 {[%clk 0:00:11.1]} 39. fxe6 {[%clk 0:02:31.2]} 39... fxe6 {[%clk
0:00:13]} 40. Kf3 {[%clk 0:02:32.8]} 40... Rb4 {[%clk 0:00:07.9]} 41. Ra7 {[%clk
0:02:34.7]} 41... Kh7 {[%clk 0:00:06]} 42. Re7 {[%clk 0:02:35.4]} 42... Rb6
{[%clk 0:00:06.4]} 43. Rd7 {[%clk 0:02:36.3]} 43... Kg6 {[%clk 0:00:07.1]} 44.
Ke4 {[%clk 0:02:36.9]} 44... Rb4+ {[%clk 0:00:07.7]} 45. Ke3 {[%clk 0:02:35.8]}
45... Rg4 {[%clk 0:00:07.3]} 46. Kf3 {[%clk 0:02:34.1]} 46... Ra4 {[%clk
0:00:07.9]} 47. Ke3 {[%clk 0:02:34.4]} 47... Kf5 {[%clk 0:00:08.2]} 48. Rxg7
{[%clk 0:02:35]} 48... Kxe5 {[%clk 0:00:09.6]} 49. Rg5+ {[%clk 0:02:36.4]} 49...
Kd6 {[%clk 0:00:11]} 50. Rb5 {[%clk 0:02:38.3]} 50... Rc4 {[%clk 0:00:09.5]} 51.
Kd3 {[%clk 0:02:39.3]} 51... Rc5 {[%clk 0:00:05.7]} 52. Rb6+ {[%clk 0:02:39.9]}
52... Kd5 {[%clk 0:00:06.7]} 53. Rb1 {[%clk 0:02:41.8]} 53... Ra5 {[%clk
0:00:06]} 54. Rb8 {[%clk 0:02:42.9]} 54... Ra3+ {[%clk 0:00:07.1]} 55. Kc2
{[%clk 0:02:44.2]} 55... Ke4 {[%clk 0:00:07]} 56. Rb4+ {[%clk 0:02:44.5]} 56...
Kf5 {[%clk 0:00:07.4]} 57. Kd2 {[%clk 0:02:44.8]} 57... Ra5 {[%clk 0:00:03.6]}
58. Ke2 {[%clk 0:02:45.9]} 58... Re5+ {[%clk 0:00:04.9]} 59. Kf3 {[%clk
0:02:47.3]} 59... Rd5 {[%clk 0:00:05.3]} 60. Rb8 {[%clk 0:02:49.2]} 60... Rd3+
{[%clk 0:00:06.1]} 61. Ke2 {[%clk 0:02:50.4]} 61... Ke4 {[%clk 0:00:06.6]} 62.
Re8 {[%clk 0:02:50.1]} 62... Rd6 {[%clk 0:00:06.8]} 63. Ra8 {[%clk 0:02:50.7]}
63... e5 {[%clk 0:00:06.4]} 64. Ra4+ {[%clk 0:02:51.9]} 64... Rd4 {[%clk
0:00:07.6]} 65. Ra6 {[%clk 0:02:52.6]} 65... Rb4 {[%clk 0:00:08.3]} 66. Ra2
{[%clk 0:02:53.1]} 66... Kf4 {[%clk 0:00:08.3]} 67. Kd3 {[%clk 0:02:53.1]} 67...
Rb3+ {[%clk 0:00:07.5]} 68. Kc4 {[%clk 0:02:54.1]} 68... Rb1 {[%clk 0:00:05.1]}
69. Kd3 {[%clk 0:02:50.7]} 69... Rd1+ {[%clk 0:00:05.4]} 70. Ke2 {[%clk
0:02:51.2]} 70... Rd4 {[%clk 0:00:05.5]} 71. Ra8 {[%clk 0:02:52.2]} 71... Re4+
{[%clk 0:00:06.7]} 72. Kf2 {[%clk 0:02:53]} 72... Rb4 {[%clk 0:00:06.3]} 73.
Rf8+ {[%clk 0:02:53.9]} 73... Ke4 {[%clk 0:00:07.8]} 74. Ra8 {[%clk 0:02:53.9]}
74... Rb2+ {[%clk 0:00:08.9]} 75. Ke1 {[%clk 0:02:55.1]} 75... Kf4 {[%clk
0:00:09.7]} 76. Ra3 {[%clk 0:02:53.4]} 76... e4 {[%clk 0:00:10.6]} 77. Ra8
{[%clk 0:02:54.1]} 77... Kf3 {[%clk 0:00:10.5]} 78. Ra7 {[%clk 0:02:53.1]} 78...
Rb1+ {[%clk 0:00:04.8]} 79. Kd2 {[%clk 0:02:53.8]} 79... Rb2+ {[%clk 0:00:06.4]}
80. Ke1 {[%clk 0:02:54.7]} 80... Re2+ {[%clk 0:00:07.3]} 81. Kf1 {[%clk
0:02:55]} 81... Rh2 {[%clk 0:00:08.3]} 82. Ke1 {[%clk 0:02:53.8]} 82... Rh1+
{[%clk 0:00:09.1]} 83. Kd2 {[%clk 0:02:54.4]} 83... e3+ {[%clk 0:00:10.5]} 84.
Kd3 {[%clk 0:02:54.9]} 84... Rd1+ {[%clk 0:00:11]} 85. Kc2 {[%clk 0:02:55.9]}
85... Rd8 {[%clk 0:00:12.5]} 86. Rf7+ {[%clk 0:02:56.3]} 86... Kg2 {[%clk
0:00:12.1]} 87. Re7 {[%clk 0:02:56]} 87... Kf2 {[%clk 0:00:12.9]} 88. Rf7+
{[%clk 0:02:57.4]} 88... Ke1 {[%clk 0:00:14.2]} 89. Re7 {[%clk 0:02:58.9]} 89...
e2 {[%clk 0:00:14.6]} 90. Kc1 {[%clk 0:03:00.3]} 90... Rc8+ {[%clk 0:00:09.2]}
91. Kb2 {[%clk 0:03:01.4]} 91... Rc5 {[%clk 0:00:10.2]} 92. Kb1 {[%clk
0:03:00.5]} 92... Rc4 {[%clk 0:00:10.3]} 93. Kb2 {[%clk 0:03:01.5]} 93... Kd2
{[%clk 0:00:11.2]} 94. Rd7+ {[%clk 0:03:01.5]} 94... Ke3 {[%clk 0:00:12.4]} 0-1

[Event "*** Titled Tuesday Blitz"]
[Site "Chess.com"]
[Date "2018.10.02"]
[Round "10"]
[White "Zq1"]
[Black "woodhy"]
[Result "1-0"]
[WhiteElo "2589"]
[BlackElo "2418"]
[TimeControl "180+2"]
[EndTime "15:14:53 PDT"]
[Termination "Zq1 won by resignation"]

1. d4 {[%clk 0:03:01.9]} 1... Nf6 {[%clk 0:02:59.6]} 2. c4 {[%clk 0:03:02.9]}
2... c6 {[%clk 0:02:59.9]} 3. Bf4 {[%clk 0:03:02.5]} 3... d5 {[%clk 0:03:01.1]}
4. e3 {[%clk 0:03:03.6]} 4... g6 {[%clk 0:03:02]} 5. Nc3 {[%clk 0:03:04.5]} 5...
Bg7 {[%clk 0:03:03.6]} 6. Nf3 {[%clk 0:03:05.8]} 6... O-O {[%clk 0:03:04.6]} 7.
h3 {[%clk 0:03:06.8]} 7... Bf5 {[%clk 0:03:05.6]} 8. Be2 {[%clk 0:03:07.4]} 8...
Ne4 {[%clk 0:03:06.2]} 9. O-O {[%clk 0:03:07.8]} 9... Nxc3 {[%clk 0:03:07.2]}
10. bxc3 {[%clk 0:03:08.5]} 10... dxc4 {[%clk 0:03:08.8]} 11. Bxc4 {[%clk
0:03:08.9]} 11... Nd7 {[%clk 0:03:09.7]} 12. a4 {[%clk 0:03:08.3]} 12... e5
{[%clk 0:03:07.3]} 13. Nxe5 {[%clk 0:03:02.3]} 13... Nxe5 {[%clk 0:03:08]} 14.
Bxe5 {[%clk 0:03:02.1]} 14... Bxe5 {[%clk 0:03:08.8]} 15. dxe5 {[%clk 0:03:03]}
15... Qa5 {[%clk 0:03:10.7]} 16. Qb3 {[%clk 0:02:44.9]} 16... Qxe5 {[%clk
0:02:46.7]} 17. Qxb7 {[%clk 0:02:45.2]} 17... Qxc3 {[%clk 0:02:47.9]} 18. Rfc1
{[%clk 0:02:36.9]} 18... Qf6 {[%clk 0:02:45.7]} 19. Ba6 {[%clk 0:02:33.3]} 19...
Rfc8 {[%clk 0:02:21.6]} 20. Qb3 {[%clk 0:02:18.6]} 20... Rc7 {[%clk 0:02:16.2]}
21. Qc3 {[%clk 0:02:18]} 21... Qg5 {[%clk 0:02:12.2]} 22. Kh2 {[%clk 0:02:12.2]}
22... Be4 {[%clk 0:02:07.7]} 23. f3 {[%clk 0:02:11.4]} 23... Bd5 {[%clk
0:02:08.9]} 24. e4 {[%clk 0:02:06.9]} 24... Be6 {[%clk 0:02:05.9]} 25. Ra3
{[%clk 0:01:57.8]} 25... h5 {[%clk 0:02:01.7]} 26. Qe3 {[%clk 0:01:57]} 26...
Qa5 {[%clk 0:01:50.7]} 27. Bc4 {[%clk 0:01:43.7]} 27... Rac8 {[%clk 0:01:37.4]}
28. Bxe6 {[%clk 0:01:41.9]} 28... Qe5+ {[%clk 0:01:35.7]} 29. f4 {[%clk
0:01:43]} 29... Qxe6 {[%clk 0:01:37.6]} 30. Rc5 {[%clk 0:01:43]} 30... Re8
{[%clk 0:01:37.1]} 31. Re5 {[%clk 0:01:38.6]} 31... Qd7 {[%clk 0:01:37.2]} 32.
Rd3 {[%clk 0:01:38.9]} 32... Qc8 {[%clk 0:01:35.8]} 33. Rxe8+ {[%clk 0:01:32.3]}
33... Qxe8 {[%clk 0:01:37.7]} 34. Rc3 {[%clk 0:01:28.7]} 34... h4 {[%clk
0:01:23.4]} 35. Rc5 {[%clk 0:01:26.5]} 35... Qe7 {[%clk 0:01:20.7]} 36. f5
{[%clk 0:01:25]} 36... g5 {[%clk 0:01:04.8]} 37. f6 {[%clk 0:01:26]} 37... Qxf6
{[%clk 0:01:04.9]} 38. Rxg5+ {[%clk 0:01:26.7]} 38... Kf8 {[%clk 0:01:04.6]} 39.
Rf5 {[%clk 0:01:27.8]} 39... Qg6 {[%clk 0:01:00.2]} 40. Qf4 {[%clk 0:01:25]}
40... Rb7 {[%clk 0:00:49.5]} 41. Rg5 {[%clk 0:01:22.8]} 41... Qe6 {[%clk
0:00:44.5]} 42. Qxh4 {[%clk 0:01:18.2]} 42... Qd6+ {[%clk 0:00:37.3]} 43. e5
{[%clk 0:01:15.9]} 43... Qe6 {[%clk 0:00:37.3]} 44. Qh8+ {[%clk 0:01:14]} 44...
Ke7 {[%clk 0:00:37.5]} 45. Rg8 {[%clk 0:01:15.5]} 45... Kd7 {[%clk 0:00:32.3]}
46. Rd8+ {[%clk 0:01:05]} 46... Kc7 {[%clk 0:00:32.5]} 47. Re8 {[%clk
0:01:06.1]} 47... Qd7 {[%clk 0:00:32.2]} 48. Qf8 {[%clk 0:01:04.8]} 48... Kb6
{[%clk 0:00:32.2]} 49. Qb4+ {[%clk 0:00:55.2]} 49... Ka6 {[%clk 0:00:33]} 50.
Qc4+ {[%clk 0:00:55.8]} 50... Ka5 {[%clk 0:00:34.1]} 51. Rg8 {[%clk 0:00:47.2]}
51... Rb4 {[%clk 0:00:33.8]} 52. Qc5+ {[%clk 0:00:46.8]} 52... Kxa4 {[%clk
0:00:34.8]} 53. Rg3 {[%clk 0:00:41.8]} 53... a5 {[%clk 0:00:28.2]} 54. Qc2+
{[%clk 0:00:33.2]} 54... Kb5 {[%clk 0:00:28.9]} 55. Rd3 {[%clk 0:00:33.2]} 55...
Qe6 {[%clk 0:00:20]} 56. Qe2 {[%clk 0:00:31.8]} 56... Kb6 {[%clk 0:00:21.1]} 57.
Rd6 {[%clk 0:00:30]} 57... Qf5 {[%clk 0:00:21.2]} 58. Rf6 {[%clk 0:00:24.6]}
58... Qe4 {[%clk 0:00:21.2]} 59. Qf2+ {[%clk 0:00:15.9]} 59... Qd4 {[%clk
0:00:22]} 60. Qxd4+ {[%clk 0:00:15.2]} 60... Rxd4 {[%clk 0:00:23.9]} 61. Rxf7
{[%clk 0:00:16.5]} 61... Re4 {[%clk 0:00:25.3]} 62. g4 {[%clk 0:00:15.9]} 62...
a4 {[%clk 0:00:26]} 63. Rf3 {[%clk 0:00:16.1]} 63... Rxe5 {[%clk 0:00:26.5]} 64.
Kg3 {[%clk 0:00:17]} 64... Kb5 {[%clk 0:00:27.9]} 65. h4 {[%clk 0:00:18.1]}
65... Kb4 {[%clk 0:00:28.3]} 66. h5 {[%clk 0:00:19.3]} 66... a3 {[%clk
0:00:28.9]} 67. h6 {[%clk 0:00:20.5]} 67... a2 {[%clk 0:00:30.2]} 68. Rf1 {[%clk
0:00:21.2]} 68... c5 {[%clk 0:00:27.8]} 69. h7 {[%clk 0:00:20.3]} 69... Re8
{[%clk 0:00:28.7]} 70. g5 {[%clk 0:00:21.1]} 70... c4 {[%clk 0:00:30.3]} 71. g6
{[%clk 0:00:21.9]} 71... c3 {[%clk 0:00:32.2]} 72. g7 {[%clk 0:00:22.9]} 72...
c2 {[%clk 0:00:29.7]} 73. g8=Q {[%clk 0:00:22.6]} 73... Re3+ {[%clk 0:00:30.8]}
74. Kf4 {[%clk 0:00:21.5]} 74... Rf3+ {[%clk 0:00:30.2]} 75. Kxf3 {[%clk
0:00:21.7]} 1-0